Workbook

Sheet 十二个月的现金流
A2: 十二个月的现金流 | O2: 财政年度开始时间： | P2: 2013-07-01
A3: 公司名称
A4: 地址，市/县，省/市/自治区，邮政编码
A5: 电话、电子邮件、 Web
B7: 开始 | C7: =FiscalYear -> 2013-07-01 | D7: =DATE(YEAR(C7),MONTH(C7)+1,1) -> 2013-08-01 | E7: =DATE(YEAR(D7),MONTH(D7)+1,1) -> 2013-09-01 | F7: 2013-10-01 | G7: 2013-11-01 | H7: 2013-12-01 | I7: 2014-01-01 | J7: 2014-02-01 | K7: 2014-03-01 | L7: 2014-04-01 | M7: 2014-05-01 | N7: 2014-06-01 | O7: 月平均 | P7: 概述
A8: 现金摘要
A9: 现有现金 （月初） | B9: 550,000 | C9: =IF(Receipts[[#Totals],[Column3]]+PaidOut[[#Totals],[Column3]]=0,"",B11) -> 675,930 | D9: =IF(Receipts[[#Totals],[Column4]]+PaidOut[[#Totals],[Column4]]=0,"",C11) -> 542,650 | E9: =IF(Receipts[[#Totals],[Column5]]+PaidOut[[#Totals],[Column5]]=0,"",D11) -> 557,390 | F9: =IF(Receipts[[#Totals],[Column6]]+PaidOut[[#Totals],[Column6]]=0,"",E11) -> 692,900 | G9: =IF(Receipts[[#Totals],[Column7]]+PaidOut[[#Totals],[Column7]]=0,"",F11) -> 656,180 | H9: =IF(Receipts[[#Totals],[Column8]]+PaidOut[[#Totals],[Column8]]=0,"",G11) ->  | I9: =IF(Receipts[[#Totals],[Column9]]+PaidOut[[#Totals],[Column9]]=0,"",H11) ->  | J9: =IF(Receipts[[#Totals],[Column10]]+PaidOut[[#Totals],[Column10]]=0,"",I11) ->  | K9: =IF(Receipts[[#Totals],[Column11]]+PaidOut[[#Totals],[Column11]]=0,"",J11) ->  | L9: =IF(Receipts[[#Totals],[Column12]]+PaidOut[[#Totals],[Column12]]=0,"",K11) ->  | M9: =IF(Receipts[[#Totals],[Column13]]+PaidOut[[#Totals],[Column13]]=0,"",L11) ->  | N9: =IF(Receipts[[#Totals],[Column14]]+PaidOut[[#Totals],[Column14]]=0,"",M11) ->  | O9: =IFERROR(AVERAGE(Summary[[#This Row],[Column3]:[Column14]]),"") -> 625,010
A10: 可用现金 （现有 + 未兑现收据） | B10: =SUM(B9,Receipts[[#Totals],[Column2]]) -> 675,930 | C10: =IF(C9="","",SUM(C9,Receipts[[#Totals],[Column3]])) -> 760,650 | D10: =IF(D9="","",SUM(D9,Receipts[[#Totals],[Column4]])) -> 833,010 | E10: =IF(E9="","",SUM(E9,Receipts[[#Totals],[Column5]])) -> 910,320 | F10: =IF(F9="","",SUM(F9,Receipts[[#Totals],[Column6]])) -> 896,620 | G10: =IF(G9="","",SUM(G9,Receipts[[#Totals],[Column7]])) -> 762,000 | H10: =IF(H9="","",SUM(H9,Receipts[[#Totals],[Column8]])) ->  | I10: =IF(I9="","",SUM(I9,Receipts[[#Totals],[Column9]])) ->  | J10: =IF(J9="","",SUM(J9,Receipts[[#Totals],[Column10]])) ->  | K10: =IF(K9="","",SUM(K9,Receipts[[#Totals],[Column11]])) ->  | L10: =IF(L9="","",SUM(L9,Receipts[[#Totals],[Column12]])) ->  | M10: =IF(M9="","",SUM(M9,Receipts[[#Totals],[Column13]])) ->  | N10: =IF(N9="","",SUM(N9,Receipts[[#Totals],[Column14]])) ->  | O10: =IFERROR(AVERAGE(Summary[[#This Row],[Column3]:[Column14]]),"") -> 832,520
A11: 现金状况 （月末） | B11: =(B10-PaidOut[[#Totals],[Column2]]) -> 675,930 | C11: =IFERROR(C10-PaidOut[[#Totals],[Column3]],"") -> 542,650 | D11: =IFERROR(D10-PaidOut[[#Totals],[Column4]],"") -> 557,390 | E11: =IFERROR(E10-PaidOut[[#Totals],[Column5]],"") -> 692,900 | F11: =IFERROR(F10-PaidOut[[#Totals],[Column6]],"") -> 656,180 | G11: =IFERROR(G10-PaidOut[[#Totals],[Column7]],"") -> 514,130 | H11: =IFERROR(H10-PaidOut[[#Totals],[Column8]],"") ->  | I11: =IFERROR(I10-PaidOut[[#Totals],[Column9]],"") ->  | J11: =IFERROR(J10-PaidOut[[#Totals],[Column10]],"") ->  | K11: =IFERROR(K10-PaidOut[[#Totals],[Column11]],"") ->  | L11: =IFERROR(L10-PaidOut[[#Totals],[Column12]],"") ->  | M11: =IFERROR(M10-PaidOut[[#Totals],[Column13]],"") ->  | N11: =IFERROR(N10-PaidOut[[#Totals],[Column14]],"") ->  | O11: =IFERROR(AVERAGE(Summary[[#This Row],[Column3]:[Column14]]),"") -> 592,650
A13: 现金收入
A14: 现金销售 | B14: 56,160 | C14: 38,890 | D14: 244,110 | E14: 316,420 | F14: 146,470 | G14: 30,340 | O14: =IFERROR(AVERAGE(Receipts[[#This Row],[Column3]:[Column14]]),"") -> 155,246
A15: 贷方应收款 | B15: 44,980 | C15: 34,930 | D15: 19,870 | E15: 10,290 | F15: 29,110 | G15: 42,340 | O15: =IFERROR(AVERAGE(Receipts[[#This Row],[Column3]:[Column14]]),"") -> 27,308
A16: 贷款/其他现金 | B16: 24,790 | C16: 10,900 | D16: 26,380 | E16: 26,220 | F16: 28,140 | G16: 33,140 | O16: =IFERROR(AVERAGE(Receipts[[#This Row],[Column3]:[Column14]]),"") -> 24,956
A17: 总现金收入 | B17: =SUBTOTAL(109,Receipts[Column2]) -> 125,930 | C17: =SUBTOTAL(109,Receipts[Column3]) -> 84,720 | D17: =SUBTOTAL(109,Receipts[Column4]) -> 290,360 | E17: =SUBTOTAL(109,Receipts[Column5]) -> 352,930 | F17: =SUBTOTAL(109,Receipts[Column6]) -> 203,720 | G17: =SUBTOTAL(109,Receipts[Column7]) -> 105,820 | H17: =SUBTOTAL(109,Receipts[Column8]) -> 0 | I17: =SUBTOTAL(109,Receipts[Column9]) -> 0 | J17: =SUBTOTAL(109,Receipts[Column10]) -> 0 | K17: =SUBTOTAL(109,Receipts[Column11]) -> 0 | L17: =SUBTOTAL(109,Receipts[Column12]) -> 0 | M17: =SUBTOTAL(109,Receipts[Column13]) -> 0 | N17: =SUBTOTAL(109,Receipts[Column14]) -> 0 | O17: =IFERROR(AVERAGE(Receipts[[#Totals],[Column3]:[Column14]]),"") -> 86,463
A19: 现金支出
A20: 购买（请指定） | C20: 5,210 | D20: 3,230 | E20: 2,740 | F20: 4,510 | G20: 1,040 | O20: =IFERROR(AVERAGE(PaidOut[[#This Row],[Column3]:[Column14]]),"") -> 3,346
A21: 总工资（具体提款） | C21: 105,720 | D21: 145,140 | E21: 105,610 | F21: 131,700 | G21: 124,780 | O21: =IFERROR(AVERAGE(PaidOut[[#This Row],[Column3]:[Column14]]),"") -> 122,590
A22: 用品（办公及经营用品） | C22: 2,500 | D22: 4,280 | E22: 1,650 | F22: 11,680 | G22: 3,450 | O22: =IFERROR(AVERAGE(PaidOut[[#This Row],[Column3]:[Column14]]),"") -> 4,712
A23: 修理维护费 | C23: 0 | D23: 22,000 | E23: 1,630 | F23: 670 | G23: 0 | O23: =IFERROR(AVERAGE(PaidOut[[#This Row],[Column3]:[Column14]]),"") -> 4,860
A24: 广告 | C24: 11,000 | D24: 6,250 | E24: 13,560 | F24: 0 | G24: 25,600 | O24: =IFERROR(AVERAGE(PaidOut[[#This Row],[Column3]:[Column14]]),"") -> 11,282
A25: 租金 | C25: 35,000 | D25: 35,000 | E25: 35,000 | F25: 35,000 | G25: 35,000 | O25: =IFERROR(AVERAGE(PaidOut[[#This Row],[Column3]:[Column14]]),"") -> 35,000
A26: 水电费 | C26: 2,850 | D26: 3,180 | E26: 1,510 | F26: 1,340 | G26: 2,280 | O26: =IFERROR(AVERAGE(PaidOut[[#This Row],[Column3]:[Column14]]),"") -> 2,232
A27: 其他费用（请指定） | C27: 1,230 | D27: 2,340 | E27: 1,230 | F27: 2,340 | G27: 1,230 | O27: =IFERROR(AVERAGE(PaidOut[[#This Row],[Column3]:[Column14]]),"") -> 1,674
A28: 贷款本金支付 | C28: 40,000 | D28: 40,000 | E28: 40,000 | F28: 40,000 | G28: 40,000 | O28: =IFERROR(AVERAGE(PaidOut[[#This Row],[Column3]:[Column14]]),"") -> 40,000
A29: 资本购买（请指定） | C29: 6,790 | D29: 7,000 | E29: 6,790 | F29: 6,500 | G29: 6,790 | O29: =IFERROR(AVERAGE(PaidOut[[#This Row],[Column3]:[Column14]]),"") -> 6,774
A30: 其他启动费用 | C30: 4,000 | D30: 3,500 | E30: 4,000 | F30: 3,000 | G30: 4,000 | O30: =IFERROR(AVERAGE(PaidOut[[#This Row],[Column3]:[Column14]]),"") -> 3,700
A31: 保留或由第三人保存 | C31: 3,000 | D31: 3,000 | E31: 3,000 | F31: 3,000 | G31: 3,000 | O31: =IFERROR(AVERAGE(PaidOut[[#This Row],[Column3]:[Column14]]),"") -> 3,000
A32: 所有者提款 | C32: 700 | D32: 700 | E32: 700 | F32: 700 | G32: 700 | O32: =IFERROR(AVERAGE(PaidOut[[#This Row],[Column3]:[Column14]]),"") -> 700
A33: 总现金支出 | C33: =SUBTOTAL(109,PaidOut[Column3]) -> 218,000 | D33: =SUBTOTAL(109,PaidOut[Column4]) -> 275,620 | E33: =SUBTOTAL(109,PaidOut[Column5]) -> 217,420 | F33: =SUBTOTAL(109,PaidOut[Column6]) -> 240,440 | G33: =SUBTOTAL(109,PaidOut[Column7]) -> 247,870 | H33: =SUBTOTAL(109,PaidOut[Column8]) -> 0 | I33: =SUBTOTAL(109,PaidOut[Column9]) -> 0 | J33: =SUBTOTAL(109,PaidOut[Column10]) -> 0 | K33: =SUBTOTAL(109,PaidOut[Column11]) -> 0 | L33: =SUBTOTAL(109,PaidOut[Column12]) -> 0 | M33: =SUBTOTAL(109,PaidOut[Column13]) -> 0 | N33: =SUBTOTAL(109,PaidOut[Column14]) -> 0 | O33: =IFERROR(AVERAGE(PaidOut[[#Totals],[Column3]:[Column14]]),"") -> 99,946
A35: 基本运营数据 （非现金流信息）
A36: 销售量（美元） | B36: 20,000 | C36: 25,000 | D36: 22,570 | E36: 23,870 | F36: 26,640 | G36: 23,240 | O36: =IFERROR(AVERAGE(EssencialOperatingData[[#This Row],[Column2]:[Column14]]),"") -> 23,553
A37: 应收帐款 | B37: 15,000 | C37: 5,000 | D37: 8,860 | E37: 10,350 | F37: 17,750 | G37: 8,390 | O37: =IFERROR(AVERAGE(EssencialOperatingData[[#This Row],[Column2]:[Column14]]),"") -> 10,892
A38: 坏帐（月末） | B38: 3,000 | C38: 2,000 | D38: 2,250 | E38: 2,690 | F38: 4,480 | G38: 3,590 | O38: =IFERROR(AVERAGE(EssencialOperatingData[[#This Row],[Column2]:[Column14]]),"") -> 3,002
A39: 现有库存（月末） | O39: =IFERROR(AVERAGE(EssencialOperatingData[[#This Row],[Column2]:[Column14]]),"") -> 
A40: 应付帐款（月末） | O40: =IFERROR(AVERAGE(EssencialOperatingData[[#This Row],[Column2]:[Column14]]),"") -> 
A41: 折旧 | O41: =IFERROR(AVERAGE(EssencialOperatingData[[#This Row],[Column2]:[Column14]]),"") -> 

Sheet 现金流统计
J26: 数据点： | K26: 6
C27: （拖动上方滑块以更改绘制的总数据点。）
